fUSD/lending_fUSD_20250806
["ID","MTS","AMOUNT","RATE_DAILY","PERIOD"]
[377586814,1754448708338,-400.0,0.00036438,14]
[377586815,1754448708348,-1615.6,0.00036438,14]
[377586816,1754448708358,-400.0,0.00036438,14]
[377586817,1754448708369,-1550.81,0.00036438,14]
[377586818,1754448708380,-400.0,0.00036438,14]
[377586819,1754448708390,-400.0,0.00036438,14]
[377586820,1754448708399,-400.0,0.00036438,14]
[377586821,1754448708409,-1830.1,0.00036438,14]
[377586822,1754448708419,-400.0,0.00036438,14]
[377586823,1754448708430,-400.0,0.00036438,14]
[377586824,1754448708439,-802.15,0.00036438,14]
[377586825,1754448708449,-1088.04,0.00036438,14]
[377586826,1754448708459,-3675.96,0.00036438,14]
[377586827,1754448708469,-417.37,0.00036438,14]
[377586828,1754448708480,-400.0,0.00036438,14]
[377586829,1754448708490,-1532.37,0.00036438,14]
[377586830,1754448708499,-498.81,0.00036438,14]
[377586831,1754448708510,-675.67,0.00036438,14]
[377586832,1754448708520,-400.0,0.00036438,14]
[377586833,1754448708529,-1930.27,0.00036438,14]
[377586834,1754448708540,-477.88,0.00036438,14]
[377586835,1754448708550,-400.0,0.00036438,14]
[377586836,1754448708560,-400.0,0.00036438,14]
[377586837,1754448708570,-400.0,0.00036438,14]
[377586838,1754448708580,-1895.26,0.00036438,14]
[377586839,1754448708589,-400.0,0.00036438,14]
[377586840,1754448708600,-2398.75,0.00036438,14]
[377586841,1754448708610,-400.0,0.00036438,14]
[377586842,1754448708620,-693.8,0.00036438,14]
[377586843,1754448708630,-1056.68,0.00036438,14]
[377586844,1754448708640,-400.0,0.00036438,14]
[377586845,1754448708650,-400.0,0.00036438,14]
[377586846,1754448708659,-694.7,0.00036438,14]
[377586847,1754448708669,-1000.88,0.00036438,14]
[377586848,1754448708679,-400.0,0.00036438,14]
[377586849,1754448708689,-400.0,0.00036438,14]
[377586850,1754448708699,-1000.0,0.00036438,14]
[377586851,1754448708710,-400.0,0.00036438,14]
[377586852,1754448708720,-400.0,0.00036438,14]
[377586853,1754448708731,-400.0,0.00036438,14]
[377586854,1754448708741,-1087.98,0.00036438,14]
[377586855,1754448708752,-401.00458912,0.00036438,14]
[377586856,1754448708763,-1317.27,0.00036438,14]
[377586857,1754448708774,-432.07,0.00036438,14]
[377586858,1754448708785,-660.48,0.00036438,14]
[377586859,1754448708795,-1841.73,0.00036438,14]
[377586860,1754448708805,-169.01669397,0.00036438,14]
[377586861,1754448708816,-400.0,0.00036438,14]
[377586862,1754448708825,-400.0,0.00036438,14]
[377586863,1754448708836,-1706.66,0.00036438,14]
[377586864,1754448708846,-400.0,0.00036438,14]
[377586865,1754448708855,-2115.6,0.00036438,14]
[377586866,1754448708866,-2048.1,0.00036438,14]
[377586867,1754448708878,-195.838328,0.00036438,7]
[377586868,1754448708888,-195.838328,0.00036438,7]
[377586869,1754448708899,-151.0,0.00036438,7]
[377586870,1754448708909,-151.0,0.00036438,7]
[377586871,1754448708919,-400.0,0.00036438,14]
[377586872,1754448708930,-890.38,0.00036438,14]
[377586873,1754448708940,-400.0,0.00036438,14]
[377586874,1754448708952,-763.76,0.00036438,14]
[377586875,1754448709284,-400.0,0.00036438,14]
[377586876,1754448709294,-400.0,0.00036438,14]
[377586877,1754448709304,-195.838328,0.00036438,7]
[377586878,1754448709314,-195.838328,0.00036438,7]
[377586879,1754448709324,-400.0,0.00036438,14]
[377586880,1754448709333,-400.0,0.00036438,14]
[377586881,1754448709343,-401.26797536,0.00036438,14]
[377586882,1754448709352,-554.46,0.00036438,14]
[377586883,1754448709362,-1978.5,0.00036438,14]
[377586884,1754448709372,-3061.86,0.00036438,14]
[377586885,1754448709381,-1869.25,0.00036438,14]
[377586886,1754448709391,-572.41,0.00036438,14]
[377586887,1754448709401,-1241.1,0.00036438,14]
[377586888,1754448709411,-1742.73,0.00036438,14]
[377586889,1754448709421,-400.0,0.00036438,14]
[377586890,1754448709430,-400.0,0.00036438,14]
[377586891,1754448709440,-589.98,0.00036438,14]
[377586892,1754448709449,-1056.28,0.00036438,14]
[377586893,1754448709458,-1789.45,0.00036438,14]
[377586894,1754448709468,-400.0,0.00036438,14]
[377586895,1754448709477,-296.52136225,0.00036438,14]
[377586896,1754448709486,-3264.35,0.00036438,14]
[377586897,1754448709496,-400.0,0.00036438,14]
[377586898,1754448709505,-400.0,0.00036438,14]
[377586899,1754448709514,-1465.39,0.00036438,14]
[377586900,1754448709524,-400.0,0.00036438,14]
[377586901,1754448709533,-719.58,0.00036438,14]
[377586902,1754448709543,-1335.74,0.00036438,14]
[377586903,1754448709552,-400.0,0.00036438,14]
[377586904,1754448709561,-1301.62,0.00036438,14]
[377586905,1754448709571,-400.0,0.00036438,14]
[377586906,1754448709580,-493.26,0.00036438,14]
[377586907,1754448709590,-400.0,0.00036438,14]
[377586908,1754448709600,-1906.92,0.00036438,14]
[377586909,1754448709609,-2206.71,0.00036438,14]
[377586910,1754448709618,-400.0,0.00036438,14]
[377586911,1754448709628,-400.0,0.00036438,14]
[377586912,1754448709637,-451.74,0.00036438,14]
[377586913,1754448709646,-400.0,0.00036438,14]
[377586914,1754448709655,-400.0,0.00036438,14]
[377586915,1754448709664,-400.0,0.00036438,14]
[377586916,1754448709674,-400.0,0.00036438,14]
[377586917,1754448709683,-400.0,0.00036438,14]
[377586918,1754448709693,-986.68,0.00036438,14]
[377586919,1754448709702,-403.59314444,0.00036438,14]
[377586920,1754448709712,-1276.43,0.00036438,14]
[377586921,1754448709721,-922.85,0.00036438,14]
[377586922,1754448709731,-947.42,0.00036438,14]
[377586923,1754448709740,-2195.08,0.00036438,14]
[377586924,1754448709749,-400.0,0.00036438,14]
[377586925,1754448709759,-400.0,0.00036438,14]
[377586926,1754448709768,-1464.57,0.00036438,14]
[377586927,1754448709777,-402.18814074,0.00036438,14]
[377586928,1754448709788,-802.3,0.00036438,14]
[377586929,1754448709797,-2197.84,0.00036438,14]
[377586930,1754448709807,-804.15,0.00036438,14]
[377586931,1754448709816,-400.0,0.00036438,14]
[377586932,1754448709825,-400.0,0.00036438,14]
[377586933,1754448709834,-820.58,0.00036438,14]
[377586934,1754448709844,-684.16,0.00036438,14]
[377586935,1754448709853,-400.0,0.00036438,14]
[377586936,1754448709866,-611.45,0.00036438,14]
[377586937,1754448709876,-744.31,0.00036438,14]
[377586938,1754448709885,-291.45651436,0.00036438,14]
[377586939,1754448709895,-1536.69,0.00036438,14]
[377586940,1754448709906,-2158.92,0.00036438,14]
[377586941,1754448709915,-400.0,0.00036438,14]
[377586942,1754448709925,-400.0,0.00036438,14]
[377586943,1754448709935,-289.48668024,0.00036438,14]
[377586944,1754448709945,-461.52,0.00036438,14]
[377586945,1754448709954,-400.0,0.00036438,14]
[377586946,1754448709964,-400.0,0.00036438,14]
[377586947,1754448709974,-400.0,0.00036438,14]
[377586948,1754448709984,-545.58,0.00036438,14]
[377586949,1754448709994,-850.08,0.00036438,14]
[377586950,1754448710003,-1521.24,0.00036438,14]
[377586951,1754448710012,-400.0,0.00036438,14]
[377586952,1754448710022,-300.0,0.00036438,14]
[377586953,1754448710031,-521.67,0.00036438,14]
[377586954,1754448710043,-279.05337732,0.00036438,14]
[377586955,1754448710053,-2094.08,0.00036438,14]
[377586956,1754448710063,-400.0,0.00036438,14]
[377586957,1754448710074,-1086.81,0.00036438,14]
[377586958,1754448710084,-1148.89,0.00036438,14]
[377586959,1754448710094,-400.0,0.00036438,14]
[377586960,1754448710104,-400.0,0.00036438,14]
[377586961,1754448710114,-400.0,0.00036438,14]
[377586962,1754448710124,-647.61,0.00036438,14]
[377586963,1754448710134,-1804.32,0.00036438,14]
[377586964,1754448710144,-401.64685272,0.00036438,14]
[377586965,1754448710153,-688.12,0.00036438,14]
[377586966,1754448710163,-575.0,0.00036438,14]
[377586967,1754448710172,-460.78,0.00036438,14]
[377586968,1754448710182,-1509.88,0.00036438,14]
[377586969,1754448710191,-400.0,0.00036438,14]
[377586970,1754448710201,-400.0,0.00036438,14]
[377586971,1754448710218,-400.0,0.00036438,14]
[377586972,1754448710227,-400.0,0.00036438,14]
[377586973,1754448710238,-1622.09,0.00036438,14]
[377586974,1754448710248,-1836.14,0.00036438,14]
[377586975,1754448710258,-400.0,0.00036438,14]
[377586976,1754448710269,-400.0,0.00036438,14]
[377586977,1754448710278,-400.0,0.00036438,14]
[377586978,1754448710297,-400.0,0.00036438,14]
[377586979,1754448710306,-774.95,0.00036438,14]
[377586980,1754448710316,-449.13,0.00036438,14]
[377586981,1754448710326,-400.0,0.00036438,14]
[377586982,1754448710336,-2961.28,0.00036438,14]
[377586983,1754448710345,-1032.0,0.00036438,14]
[377586984,1754448710354,-878.8,0.00036438,14]
[377586985,1754448710363,-401.05794948,0.00036438,14]
[377586986,1754448710373,-1829.37,0.00036438,14]
[377586987,1754448710382,-2880.34,0.00036438,14]
[377586988,1754448710392,-1462.8,0.00036438,14]
[377586989,1754448710402,-3418.23,0.00036438,14]
[377586990,1754448710411,-1158.06,0.00036438,14]
[377586991,1754448710421,-400.0,0.00036438,14]
[377586992,1754448710430,-400.0,0.00036438,14]
[377586993,1754448710439,-1563.04,0.00036438,14]
[377586994,1754448710449,-400.0,0.00036438,14]
[377586995,1754448710458,-650.36,0.00036438,14]
[377586996,1754448710467,-400.0,0.00036438,14]
[377586997,1754448710477,-1923.25,0.00036438,14]
[377586998,1754448710486,-400.0,0.00036438,14]
[377586999,1754448710495,-2020.14,0.00036438,14]
[377587000,1754448710505,-2285.89,0.00036438,14]
[377587001,1754448710515,-3412.85,0.00036438,14]
[377587002,1754448710524,-444.68,0.00036438,14]
[377587003,1754448710534,-400.0,0.00036438,14]
[377587004,1754448710543,-400.0,0.00036438,14]
[377587005,1754448710553,-400.0,0.00036438,14]
[377587006,1754448710562,-400.0,0.00036438,14]
[377587007,1754448710571,-1704.34,0.00036438,14]
[377587008,1754448710581,-400.0,0.00036438,14]
[377587009,1754448710590,-981.32,0.00036438,14]
[377587010,1754448710600,-400.0,0.00036438,14]
[377587011,1754448710609,-422.51,0.00036438,14]
[377587012,1754448710619,-1217.8,0.00036438,14]
[377587013,1754448710628,-400.0,0.00036438,14]
[377587014,1754448710637,-400.0,0.00036438,14]
[377587015,1754448710647,-719.56,0.00036438,14]
[377587016,1754448710656,-426.16,0.00036438,14]
[377587017,1754448710665,-400.0,0.00036438,14]
[377587018,1754448710674,-2284.92,0.00036438,14]
[377587019,1754448710684,-2049.87,0.00036438,14]
[377587020,1754448710693,-400.0,0.00036438,14]
[377587021,1754448710702,-400.0,0.00036438,14]
[377587022,1754448710711,-400.0,0.00036438,14]
[377587023,1754448710721,-400.0,0.00036438,14]
[377587024,1754448710730,-400.0,0.00036438,14]
[377587025,1754448710739,-1324.35,0.00036438,14]
[377587026,1754448710749,-400.0,0.00036438,14]
[377587027,1754448710758,-400.0,0.00036438,14]
[377587028,1754448710768,-400.0,0.00036438,14]
[377587029,1754448710777,-536.81,0.00036438,14]
[377587030,1754448710786,-400.0,0.00036438,14]
[377587031,1754448710796,-1978.73,0.00036438,14]
[377587032,1754448710805,-2066.75,0.00036438,14]
[377587033,1754448710814,-400.0,0.00036438,14]
[377587034,1754448710824,-400.0,0.00036438,14]
[377587035,1754448710833,-400.0,0.00036438,14]
[377587036,1754448710842,-2370.33,0.00036438,14]
[377587037,1754448710852,-400.0,0.00036438,14]
[377587038,1754448710862,-400.0,0.00036438,14]
[377587039,1754448710873,-618.59,0.00036438,14]
[377587040,1754448710883,-1380.46,0.00036438,14]
[377587041,1754448710892,-400.0,0.00036438,14]
[377587042,1754448710901,-1918.49,0.00036438,14]
[377587043,1754448710910,-681.38,0.00036438,14]
[377587044,1754448710921,-400.0,0.00036438,14]
[377587045,1754448710931,-400.0,0.00036438,14]
[377587046,1754448710940,-400.0,0.00036438,14]
[377587047,1754448710950,-400.0,0.00036438,14]
[377587048,1754448710959,-898.87,0.00036438,14]
[377587049,1754448710969,-1159.52,0.00036438,14]
[377587050,1754448710979,-589.89,0.00036438,14]
[377587051,1754448710988,-2526.57,0.00036438,14]
[377587052,1754448710998,-400.0,0.00036438,14]
[377587053,1754448711007,-400.0,0.00036438,14]
[377587054,1754448711017,-481.3,0.00036438,14]
[377587055,1754448711026,-400.0,0.00036438,14]
[377587056,1754448711035,-400.0,0.00036438,14]
[377587057,1754448711045,-1943.34,0.00036438,14]
[377587058,1754448711054,-771.1,0.00036438,14]
[377587059,1754448711064,-738.49,0.00036438,14]
[377587060,1754448711073,-1101.66,0.00036438,14]
[377587061,1754448711083,-2119.77,0.00036438,14]
[377587062,1754448711092,-400.0,0.00036438,14]
[377587063,1754448711102,-400.0,0.00036438,14]
[377587064,1754448711111,-400.0,0.00036438,14]
[377587065,1754448711121,-151.0,0.00036438,7]
[377587066,1754448711130,-400.0,0.00036438,14]
[377587067,1754448711139,-151.0,0.00036438,7]
[377587068,1754448711149,-151.0,0.00036438,7]
[377587069,1754448711158,-151.0,0.00036438,7]
[377587070,1754448711167,-2486.07,0.00036438,14]
[377587071,1754448711177,-400.0,0.00036438,14]
[377587072,1754448711186,-400.0,0.00036438,14]
[377587073,1754448711196,-400.0,0.00036438,14]
[377587074,1754448711205,-1301.09,0.00036438,14]
[377587075,1754448711214,-400.0,0.00036438,14]
[377587076,1754448711223,-825.89,0.00036438,14]
[377587077,1754448711233,-400.0,0.00036438,14]
[377587078,1754448711243,-400.0,0.00036438,14]
[377587079,1754448711251,-400.0,0.00036438,14]
[377587080,1754448711261,-400.0,0.00036438,14]
[377587081,1754448711278,-400.0,0.00036438,14]
[377587082,1754448711287,-681.33,0.00036438,14]
[377587083,1754448711297,-445.44100079,0.00036438,14]
[377587084,1754448711306,-424.16,0.00036438,14]
[377587085,1754448711315,-400.0,0.00036438,14]
[377587086,1754448711324,-1940.75,0.00036438,14]
[377587087,1754448711333,-400.0,0.00036438,14]
[377587088,1754448711342,-2332.46,0.00036438,14]
[377587089,1754448711351,-400.0,0.00036438,14]
[377587090,1754448711361,-400.0,0.00036438,14]
[377587091,1754448711370,-400.0,0.00036438,14]
[377587092,1754448711379,-2008.42,0.00036438,14]
[377587093,1754448711389,-1594.04,0.00036438,14]
[377587094,1754448711399,-400.0,0.00036438,14]
[377587095,1754448711408,-400.0,0.00036438,14]
[377587096,1754448711417,-1556.67,0.00036438,14]
[377587097,1754448711427,-400.0,0.00036438,14]
[377587098,1754448711436,-400.0,0.00036438,14]
[377587099,1754448711445,-803.41,0.00036438,14]
[377587100,1754448711454,-1049.45,0.00036438,14]
[377587101,1754448711463,-400.0,0.00036438,14]
[377587102,1754448711472,-2287.11,0.00036438,14]
[377587103,1754448711481,-2094.9,0.00036438,14]
[377587104,1754448711490,-3089.8,0.00036438,14]
[377587105,1754448711499,-181.4670699,0.00036438,14]
[377587106,1754448711508,-400.0,0.00036438,14]
[377587107,1754448711517,-2284.3,0.00036438,14]
[377587108,1754448711526,-1760.6,0.00036438,14]
[377587109,1754448711536,-590.2,0.00036438,14]
[377587110,1754448711545,-904.68,0.00036438,14]
[377587111,1754448711671,-400.0,0.00036438,14]
[377587112,1754448711682,-524.39,0.00036438,14]
[377587113,1754448711691,-400.0,0.00036438,14]
[377587114,1754448711701,-538.64,0.00036438,14]
[377587115,1754448711710,-400.0,0.00036438,14]
[377587116,1754448711719,-400.0,0.00036438,14]
[377587117,1754448711728,-473.05,0.00036438,14]
[377587118,1754448711737,-477.4,0.00036438,14]
[377587119,1754448711746,-681.47,0.00036438,14]
[377587120,1754448711755,-400.52984215,0.00036438,14]
[377587121,1754448711765,-992.23,0.00036438,14]
[377587122,1754448711773,-1562.45,0.00036438,14]
[377587123,1754448711782,-400.0,0.00036438,14]
[377587124,1754448711793,-400.0,0.00036438,14]
[377587125,1754448711802,-1343.91,0.00036438,14]
[377587126,1754448711811,-197.36492,0.00036438,7]
[377587127,1754448711820,-1123.2,0.00036438,14]
[377587128,1754448711830,-400.0,0.00036438,14]
[377587129,1754448711839,-402.35,0.00036438,14]
[377587130,1754448711847,-400.0,0.00036438,14]
[377587131,1754448711857,-400.0,0.00036438,14]
[377587132,1754448711866,-400.0,0.00036438,14]
[377587133,1754448711877,-659.8,0.00036438,14]
[377587134,1754448711886,-400.0,0.00036438,14]
[377587135,1754448711896,-905.29,0.00036438,14]
[377587136,1754448711906,-400.0,0.00036438,14]
[377587137,1754448711915,-400.0,0.00036438,14]
[377587138,1754448711924,-833.81,0.00036438,14]
[377587139,1754448711933,-400.0,0.00036438,14]
[377587140,1754448711943,-400.0,0.00036438,14]
[377587141,1754448711951,-400.0,0.00036438,14]
[377587142,1754448711962,-423.93,0.00036438,14]
[377587143,1754448711971,-400.0,0.00036438,14]
[377587144,1754448711980,-1620.39,0.00036438,14]
[377587145,1754448711990,-400.0,0.00036438,14]
[377587146,1754448711999,-1647.26,0.00036438,14]
[377587147,1754448712008,-400.0,0.00036438,14]
[377587148,1754448712017,-2673.63,0.00036438,14]
[377587149,1754448712028,-400.0,0.00036438,14]
[377587150,1754448712045,-400.0,0.00036438,14]
[377587151,1754448712055,-3032.43,0.00036438,14]
[377587152,1754448712064,-400.77999768,0.00036438,14]
[377587153,1754448712073,-2718.79,0.00036438,14]
[377587154,1754448712083,-591.66,0.00036438,14]
[377587155,1754448712092,-400.0,0.00036438,14]
[377587156,1754448712102,-652.53,0.00036438,14]
[377587157,1754448712111,-177.48083311,0.00036438,14]
[377587158,1754448712120,-537.68,0.00036438,14]
[377587159,1754448712130,-400.0,0.00036438,14]
[377587160,1754448712139,-400.0,0.00036438,14]
[377587161,1754448712149,-400.0,0.00036438,14]
[377587162,1754448712159,-1352.85,0.00036438,14]
[377587163,1754448712168,-400.0,0.00036438,14]
[377587164,1754448712178,-1194.25,0.00036438,14]
[377587165,1754448712187,-1325.26,0.00036438,14]
[377587166,1754448712197,-687.17,0.00036438,14]
[377587167,1754448712220,-3219.58,0.00036438,14]
[377587168,1754448712230,-400.0,0.00036438,14]
[377587169,1754448712240,-400.0,0.00036438,14]
[377587170,1754448712249,-400.0,0.00036438,14]
[377587171,1754448712258,-2118.84,0.00036438,14]
[377587172,1754448712267,-2996.94,0.00036438,14]
[377587173,1754448712275,-1193.92,0.00036438,14]
[377587174,1754448712285,-476.26955391,0.00036438,14]
[377587175,1754448712294,-400.0,0.00036438,14]
[377587176,1754448712304,-1273.79,0.00036438,14]
[377587177,1754448712313,-400.0,0.00036438,14]
[377587178,1754448712322,-400.0,0.00036438,14]
[377587179,1754448712331,-400.0,0.00036438,14]
[377587180,1754448712340,-400.0,0.00036438,14]
[377587181,1754448712349,-400.0,0.00036438,14]
[377587182,1754448712358,-825.46,0.00036438,14]
[377587183,1754448712367,-400.0,0.00036438,14]
[377587184,1754448712375,-400.0,0.00036438,14]
[377587185,1754448712385,-509.96,0.00036438,14]
[377587186,1754448712394,-2113.04,0.00036438,14]
[377587187,1754448712403,-400.0,0.00036438,14]
[377587188,1754448712412,-2100.37,0.00036438,14]
[377587189,1754448712421,-400.0,0.00036438,14]
[377587190,1754448712430,-400.0,0.00036438,14]
[377587191,1754448712439,-1931.44,0.00036438,14]
[377587192,1754448712448,-445.22,0.00036438,14]
[377587193,1754448712457,-400.0,0.00036438,14]
[377587194,1754448712466,-2053.25,0.00036438,14]
[377587195,1754448712476,-400.0,0.00036438,14]
[377587196,1754448712485,-1620.16,0.00036438,14]
[377587197,1754448712494,-400.0,0.00036438,14]
[377587198,1754448712504,-590.55,0.00036438,14]
[377587199,1754448712513,-400.0,0.00036438,14]
[377587200,1754448712523,-400.0,0.00036438,14]
[377587201,1754448712532,-400.0,0.00036438,14]
[377587202,1754448712543,-400.0,0.00036438,14]
[377587203,1754448712552,-457.71,0.00036438,14]
[377587204,1754448712562,-2493.6,0.00036438,14]
[377587205,1754448712571,-2044.76,0.00036438,14]
[377587206,1754448712581,-400.0,0.00036438,14]
[377587207,1754448712590,-500.0,0.00036438,10]
[377587208,1754448712599,-400.0,0.00036438,14]
[377587209,1754448712609,-1325.52,0.00036438,14]
[377587210,1754448712621,-3399.61,0.00036438,14]
[377587211,1754448712630,-400.0,0.00036438,14]
[377587212,1754448712641,-400.0,0.00036438,14]
[377587213,1754448712651,-400.0,0.00036438,14]
[377587214,1754448712662,-486.69,0.00036438,14]
[377587215,1754448712671,-400.0,0.00036438,14]
[377587216,1754448712680,-1026.17,0.00036438,14]
[377587217,1754448712690,-400.0,0.00036438,14]
[377587218,1754448712701,-723.29,0.00036438,14]
[377587219,1754448712711,-651.88,0.00036438,14]
[377587220,1754448712720,-400.0,0.00036438,14]
[377587221,1754448712729,-400.0,0.00036438,14]
[377587222,1754448712739,-903.69,0.00036438,14]
[377587223,1754448712748,-1532.92,0.00036438,14]
[377587224,1754448712757,-672.26,0.00036438,14]
[377587225,1754448712767,-400.0,0.00036438,14]
[377587226,1754448712776,-400.0,0.00036438,14]
[377587227,1754448712785,-400.0,0.00036438,14]
[377587228,1754448712795,-1382.08,0.00036438,14]
[377587229,1754448712804,-400.0,0.00036438,14]
[377587230,1754448712814,-2614.37,0.00036438,14]
[377587231,1754448712823,-400.0,0.00036438,14]
[377587232,1754448712832,-1985.89,0.00036438,14]
[377587233,1754448712841,-400.0,0.00036438,14]
[377587234,1754448712850,-400.0,0.00036438,14]
[377587235,1754448712861,-677.89,0.00036438,14]
[377587236,1754448712872,-1383.95,0.00036438,14]
[377587237,1754448712882,-400.0,0.00036438,14]
[377587238,1754448712892,-400.0,0.00036438,14]
[377587239,1754448712902,-832.0,0.00036438,14]
[377587240,1754448712911,-1028.28,0.00036438,14]
[377587241,1754448712921,-400.0,0.00036438,14]
[377587242,1754448712931,-400.0,0.00036438,14]
[377587243,1754448712940,-400.0,0.00036438,14]
[377587244,1754448712951,-579.93,0.00036438,14]
[377587245,1754448712960,-400.0,0.00036438,14]
[377587246,1754448712971,-2180.85,0.00036438,14]
[377587247,1754448712982,-717.13,0.00036438,14]
[377587248,1754448712991,-400.0,0.00036438,14]
[377587249,1754448713000,-400.0,0.00036438,14]
[377587250,1754448713010,-481.12908951,0.00036438,14]
[377587251,1754448713019,-2778.5,0.00036438,14]
[377587252,1754448713028,-400.0,0.00036438,14]
[377587253,1754448713042,-400.0,0.00036438,14]
[377587254,1754448713051,-400.0,0.00036438,14]
[377587255,1754448713061,-2015.29,0.00036438,14]
[377587256,1754448713070,-3708.79,0.00036438,14]
[377587257,1754448713079,-752.93,0.00036438,14]
[377587258,1754448713089,-400.0,0.00036438,14]
[377587259,1754448713099,-164.597001,0.00036438,7]
[377587260,1754448713110,-400.0,0.00036438,14]
[377587261,1754448713119,-164.597001,0.00036438,7]
[377587262,1754448713128,-400.0,0.00036438,14]
[377587263,1754448713138,-735.15,0.00036438,14]
[377587264,1754448713148,-2553.57,0.00036438,14]
[377587265,1754448713157,-400.0,0.00036438,14]
[377587266,1754448713167,-1607.76,0.00036438,14]
[377587267,1754448713176,-400.0,0.00036438,14]
[377587268,1754448713185,-400.0,0.00036438,14]
[377587269,1754448713195,-1838.27,0.00036438,14]
[377587270,1754448713205,-757.96,0.00036438,14]
[377587271,1754448713215,-2459.31,0.00036438,14]
[377587272,1754448713224,-164.597001,0.00036438,7]
[377587273,1754448713234,-164.597001,0.00036438,7]
[377587274,1754448713243,-400.0,0.00036438,2]
[377587275,1754448713252,-400.0,0.00036438,14]
[377587276,1754448713261,-2248.73,0.00036438,14]
[377587277,1754448713271,-865.96,0.00036438,14]
[377587278,1754448713280,-400.0,0.00036438,14]
[377587279,1754448713290,-1094.22,0.00036438,14]
[377587280,1754448713299,-842.75,0.00036438,14]
[377587281,1754448713308,-1141.46,0.00036438,14]
[377587282,1754448713317,-2023.14,0.00036438,14]
[377587283,1754448713326,-400.0,0.00036438,14]
[377587284,1754448713336,-1074.3,0.00036438,14]
[377587285,1754448713345,-1520.4,0.00036438,14]
[377587286,1754448713354,-414.57,0.00036438,14]
[377587287,1754448713363,-1903.84,0.00036438,14]
[377587288,1754448713372,-400.0,0.00036438,14]
[377587289,1754448713381,-400.0,0.00036438,14]
[377587290,1754448713390,-715.12,0.00036438,14]
[377587291,1754448713399,-400.0,0.00036438,14]
[377587292,1754448713408,-1769.99,0.00036438,14]
[377587293,1754448713417,-3013.96,0.00036438,14]
[377587294,1754448713426,-450.72,0.00036438,14]
[377587295,1754448713434,-1189.15,0.00036438,14]
[377587296,1754448713443,-400.0,0.00036438,14]
[377587297,1754448713452,-1853.29,0.00036438,14]
[377587298,1754448713461,-400.0,0.00036438,14]
[377587299,1754448713470,-2171.13,0.00036438,14]
[377587300,1754448713479,-492.36,0.00036438,14]
[377587301,1754448713488,-1432.94,0.00036438,14]
[377587302,1754448713497,-2772.54,0.00036438,14]
[377587303,1754448713507,-400.0,0.00036438,14]
[377587304,1754448713516,-660.15,0.00036438,14]
[377587305,1754448713525,-687.86,0.00036438,14]
[377587306,1754448713534,-2123.08,0.00036438,14]
[377587307,1754448713544,-1512.02,0.00036438,14]
[377587308,1754448713553,-1752.0,0.00036438,14]
[377587309,1754448713562,-400.0,0.00036438,14]
[377587310,1754448713571,-1827.77,0.00036438,14]
[377587311,1754448713580,-400.0,0.00036438,14]
[377587312,1754448713589,-400.0,0.00036438,14]
[377587313,1754448713598,-400.0,0.00036438,14]